bitfinex/quotes_SOLUSD_20241110
["timestamp","ask_amount","ask_price","bid_price","bid_amount"]
[1731207544081,41.49014512,202.68,202.63,6.6156]
[1731207544281,41.49014512,202.67,202.63,6.6156]
[1731207544462,41.59014512,202.8,202.63,6.6156]
[1731207544667,41.49014512,202.69,202.63,6.6156]
[1731207544974,41.59014512,202.8,202.63,6.6156]
[1731207544975,41.49014512,202.67,202.63,6.6156]
[1731207545181,41.59014512,202.8,202.63,6.6156]
[1731207545182,41.49014512,202.69,202.63,6.6156]
[1731207545365,16.5654,202.84,202.64,88.64246147]
[1731207545568,41.49014512,202.76,202.69,41.49014512]
[1731207546854,41.49014512,202.75,202.68,41.49014512]
[1731207547055,41.49014512,202.76,202.69,41.49014512]
[1731207547284,41.49014512,202.75,202.68,41.49014512]
[1731207547464,0.1,202.84,202.69,41.49014512]
[1731207547655,41.49014512,202.75,202.68,41.49014512]
[1731207547861,41.49014512,202.8,202.66,4.925]
[1731207547862,41.49014512,202.72,202.66,4.925]
[1731207548684,0.1,202.82,202.66,46.41514512]
[1731207548974,24.002374,202.86,202.64,88.54246147]
[1731207548975,41.49014512,202.76,202.68,46.41514512]
[1731207549282,41.49014512,202.75,202.68,46.41514512]
[1731207549582,41.49014512,202.74,202.68,4.925]
[1731207550086,41.49014512,202.71,202.64,65.26702912]
[1731207550378,41.49014512,202.67,202.63,6.6156]
[1731207550767,41.49014512,202.68,202.63,6.6156]
[1731207551579,41.49014512,202.69,202.63,6.6156]
[1731207551780,41.49014512,202.7,202.63,6.6156]
[1731207552575,41.49014512,202.69,202.63,6.6156]
[1731207552996,41.49014512,202.68,202.63,6.6156]
[1731207553167,41.49014512,202.69,202.63,6.6156]
[1731207553369,25.68072723,202.69,202.63,6.6156]
[1731207554776,25.68072723,202.67,202.63,6.6156]
[1731207554979,25.68072723,202.67,202.63,11.5406]
[1731207555290,25.68072723,202.71,202.64,25.68072723]
[1731207555592,25.68072723,202.67,202.64,4.925]
[1731207556073,0.12549,202.79,202.63,6.6156]
[1731207556074,25.68072723,202.65,202.63,6.6156]
[1731207556267,25.68072723,202.65,202.56,6.4876]
[1731207556570,25.68072723,202.7,202.56,6.4876]
[1731207556571,25.68072723,202.59,202.56,6.4876]
[1731207557086,0.1,202.67,202.56,6.4876]
[1731207557289,25.68072723,202.6,202.56,6.4876]
[1731207558493,25.68072723,202.58,202.56,6.4876]
[1731207559000,0.1,202.67,202.56,6.4876]
[1731207559001,25.68072723,202.6,202.56,6.4876]
[1731207560580,25.68072723,202.62,202.56,6.4876]
[1731207560989,25.68072723,202.6,202.49,23.776884]
[1731207561193,25.68072723,202.6,202.51,25.68072723]
[1731207561690,25.68072723,202.6,202.52,25.68072723]
[1731207562191,25.68072723,202.6,202.53,25.68072723]
[1731207563797,25.68072723,202.6,202.54,20.0]
[1731207564175,25.68072723,202.64,202.57,20.0]
[1731207564776,25.68072723,202.62,202.57,20.0]
[1731207564976,25.68072723,202.62,202.56,20.0]
[1731207566401,25.68072723,202.58,202.49,25.68072723]
[1731207566608,25.68072723,202.56,202.49,25.68072723]
[1731207567093,25.68072723,202.56,202.5,4.925]
[1731207567898,25.68072723,202.54,202.47,26.6599]
[1731207568576,25.68072723,202.54,202.48,20.0]
[1731207569578,25.68072723,202.6,202.48,20.0]
[1731207569780,25.68072723,202.55,202.48,20.0]
[1731207571295,25.68072723,202.54,202.48,20.0]
[1731207571597,25.68072723,202.55,202.48,20.0]
[1731207572099,25.68072723,202.6,202.53,20.0]
[1731207572597,25.68072723,202.6,202.44,3.67015976]
[1731207572598,0.1,202.53,202.44,3.67015976]
[1731207572806,25.68072723,202.45,202.32,64.76557747]
[1731207572997,25.68072723,202.46,202.37,25.68072723]
[1731207573306,25.68072723,202.44,202.4,6.4876]
[1731207573786,25.68072723,202.46,202.4,6.4876]
[1731207574100,25.68072723,202.44,202.4,6.4876]
[1731207574996,25.68072723,202.46,202.4,6.4876]
[1731207575394,25.68072723,202.48,202.4,6.4876]
[1731207575589,25.68072723,202.48,202.41,20.0]
[1731207576192,25.68072723,202.46,202.41,20.0]
[1731207577500,25.68072723,202.44,202.41,20.0]
[1731207577722,25.68072723,202.42,202.34,21.7348]
[1731207577916,25.68072723,202.5,202.34,21.7348]
[1731207577917,25.68072723,202.38,202.34,21.7348]
[1731207578079,25.68072723,202.38,202.3,25.68072723]
[1731207578080,25.68072723,202.38,202.28,6.4875]
[1731207578283,25.68072723,202.32,202.28,6.4875]
[1731207578589,25.68072723,202.4,202.28,6.4875]
[1731207578590,25.68072723,202.34,202.28,6.4875]
[1731207579284,25.68072723,202.32,202.28,6.4875]
[1731207579688,25.68072723,202.34,202.28,6.4875]
[1731207580092,25.68072723,202.34,202.29,20.0]
[1731207580799,3.65770823,202.47,202.29,20.0]
[1731207580800,25.68072723,202.36,202.29,20.0]
[1731207581393,25.68072723,202.38,202.3,25.68072723]
[1731207581701,25.68072723,202.4,202.32,25.68072723]
[1731207581916,25.68072723,202.42,202.35,20.0]
[1731207582092,25.68072723,202.4,202.32,30.60572723]
[1731207582287,25.68072723,202.38,202.33,20.0]
[1731207582498,3.7910922,202.52,202.33,20.0]
[1731207582702,0.1,202.55,202.35,20.0]
[1731207582982,25.68072723,202.43,202.35,20.0]
[1731207583188,25.68072723,202.45,202.37,25.68072723]
[1731207583689,0.12549,202.54,202.38,20.0]
[1731207583988,25.68072723,202.45,202.38,20.0]
[1731207584903,25.68072723,202.43,202.36,20.0]
[1731207586012,23.902374,202.54,202.38,20.0]
[1731207586193,25.68072723,202.45,202.38,20.0]
[1731207586705,25.68072723,202.45,202.37,20.0]
[1731207588903,25.68072723,202.43,202.37,20.0]
[1731207589113,25.68072723,202.47,202.39,45.68072723]
[1731207590599,25.68072723,202.49,202.42,20.0]
[1731207591004,25.68072723,202.48,202.42,20.0]
[1731207592219,25.68072723,202.45,202.39,20.0]
[1731207592523,25.68072723,202.4,202.38,6.4875]
[1731207592813,25.68072723,202.39,202.38,6.4875]
[1731207593003,25.68072723,202.4,202.38,6.4875]
[1731207593400,51.36145446,202.4,202.33,4.925]
[1731207593606,25.68072723,202.34,202.33,4.925]
[1731207594201,25.68072723,202.34,202.32,6.4875]
[1731207594402,25.68072723,202.34,202.15,4.925]
[1731207594403,0.1,202.39,202.18,96.9338047]
[1731207594629,0.12549,202.44,202.21,64.76557747]
[1731207594630,25.68072723,202.29,202.21,64.76557747]
[1731207594798,25.68072723,202.31,202.22,25.68072723]
[1731207595517,0.1,202.44,202.22,25.68072723]
[1731207595819,25.68072723,202.3,202.23,20.0]
[1731207596901,25.68072723,202.3,202.24,90.4463047]
[1731207597108,25.68072723,202.32,202.25,20.0]
[1731207597426,25.68072723,202.31,202.25,20.0]
[1731207598403,25.68072723,202.34,202.26,25.68072723]
[1731207598604,25.68072723,202.34,202.27,20.0]
[1731207599522,25.68072723,202.31,202.25,20.0]
[1731207599710,25.68072723,202.29,202.23,20.0]
[1731207599912,25.68072723,202.26,202.19,25.68072723]
[1731207600240,25.68072723,202.28,202.19,25.68072723]
[1731207600521,25.68072723,202.26,202.18,35.9119817]
[1731207600709,25.68072723,202.26,202.2,25.68072723]
[1731207600907,0.1,202.37,202.19,20.0]
[1731207601110,20.0,202.44,202.18,74.99683194]
[1731207601111,25.68072723,202.3,202.23,25.68072723]
[1731207601313,25.68072723,202.27,202.18,74.99683194]
[1731207601520,25.68072723,202.29,202.2,25.68072723]
[1731207601826,25.68072723,202.33,202.24,25.68072723]
[1731207602207,25.68072723,202.31,202.24,25.68072723]
[1731207602415,0.1,202.49,202.26,25.68072723]
[1731207602622,25.68072723,202.36,202.29,20.0]
[1731207603506,25.68072723,202.35,202.27,20.0]
[1731207603909,25.68072723,202.31,202.24,25.68072723]
[1731207604112,25.68072723,202.34,202.26,25.68072723]
[1731207604319,0.1,202.44,202.27,31.71632723]
[1731207604517,25.68072723,202.36,202.27,6.0356]
[1731207604732,5.08686521,202.46,202.29,64.76557747]
[1731207604929,25.68072723,202.41,202.33,25.68072723]
[1731207605109,25.68072723,202.39,202.32,25.68072723]
[1731207605305,25.68072723,202.39,202.33,20.0]
[1731207605623,25.68072723,202.41,202.33,20.0]
[1731207605927,25.68072723,202.41,202.34,25.68072723]
[1731207606125,25.68072723,202.41,202.35,20.0]
[1731207606434,25.68072723,202.43,202.37,20.0]
[1731207606813,25.68072723,202.43,202.33,20.0]
[1731207607131,5.08590159,202.52,202.39,20.0]
[1731207607320,25.68072723,202.46,202.35,20.0]
[1731207607530,25.68072723,202.46,202.39,20.0]
[1731207608734,25.68072723,202.49,202.41,20.0]
[1731207608925,25.68072723,202.47,202.41,20.0]
[1731207609110,25.68072723,202.46,202.41,20.0]
[1731207609310,25.68072723,202.48,202.4,31.71642723]
[1731207609511,25.68072723,202.48,202.41,20.0]
[1731207610118,25.68072723,202.49,202.41,45.68072723]
[1731207610629,25.68072723,202.5,202.43,20.0]
[1731207611130,25.68072723,202.51,202.43,45.68072723]
[1731207611308,25.68072723,202.51,202.45,20.0]
[1731207612038,25.68072723,202.53,202.45,25.68072723]
[1731207612230,25.68072723,202.53,202.46,20.0]
[1731207612424,25.68072723,202.54,202.47,25.68072723]
[1731207612642,25.68072723,202.6,202.52,45.68072723]
[1731207612934,25.68072723,202.6,202.5,20.0]
[1731207612935,25.68072723,202.6,202.53,31.71642723]
[1731207613130,25.68072723,202.7,202.55,25.68072723]
[1731207613131,25.68072723,202.62,202.55,25.68072723]
[1731207613336,25.68072723,202.62,202.56,20.0]
[1731207613639,25.68072723,202.63,202.56,45.68072723]
[1731207613935,25.68072723,202.63,202.53,6.0357]
[1731207613936,25.68072723,202.64,202.58,20.0]
[1731207614330,25.68072723,202.65,202.58,45.68072723]
[1731207614525,25.68072723,202.66,202.59,25.68072723]
[1731207614833,25.68072723,202.67,202.6,20.0]
[1731207615633,25.68072723,202.69,202.61,25.68072723]
[1731207615930,25.68072723,202.7,202.63,25.68072723]
[1731207616233,0.9440001,202.8,202.65,20.0]
[1731207616422,25.68072723,202.73,202.65,25.68072723]
[1731207616729,25.68072723,202.73,202.66,52.32962723]
[1731207617237,0.84377021,202.84,202.71,25.68072723]
[1731207617530,15.2368,202.89,202.66,43.0913]
[1731207617531,25.68072723,202.81,202.73,25.68072723]
[1731207617733,25.68072723,202.77,202.7,20.0]
[1731207617920,25.68072723,202.79,202.71,25.68072723]
[1731207618125,25.68072723,202.79,202.7,20.0]
[1731207618316,25.68072723,202.79,202.7,45.68072723]
[1731207618513,25.68072723,202.75,202.66,48.77202723]
[1731207618823,25.68072723,202.74,202.67,45.68072723]
[1731207619018,25.68072723,202.73,202.67,20.0]
[1731207619225,0.1,202.85,202.68,25.68072723]
[1731207619429,25.68072723,202.77,202.7,45.68072723]
[1731207619737,25.68072723,202.79,202.73,20.0]
[1731207620030,25.68072723,202.78,202.73,20.0]
[1731207620432,25.68072723,202.79,202.72,25.68072723]
[1731207620739,25.68072723,202.79,202.73,20.0]
[1731207620933,25.68072723,202.81,202.74,25.68072723]
[1731207621124,25.68072723,202.81,202.73,45.68072723]
[1731207621324,25.68072723,202.82,202.74,25.68072723]
[1731207621520,25.68072723,202.82,202.75,20.0]
[1731207621721,25.68072723,202.84,202.77,32.32962723]
[1731207621926,31.59816899,202.9,202.77,32.32962723]
[1731207621927,25.68072723,202.87,202.8,20.0]
[1731207622322,25.68072723,202.86,202.8,20.0]
[1731207622622,25.68072723,202.86,202.79,25.68072723]
[1731207622827,25.68072723,202.87,202.8,45.68072723]
[1731207623020,25.68072723,202.88,202.81,25.68072723]
[1731207623219,25.68072723,202.9,202.82,45.68072723]
[1731207624039,25.68072723,202.83,202.8,20.0]
[1731207624336,25.68072723,202.82,202.77,6.6489]
[1731207624642,25.68072723,202.83,202.77,6.6489]
[1731207624819,25.68072723,202.81,202.77,6.6489]
[1731207625025,25.68072723,202.78,202.73,16.4424]
[1731207625224,25.68072723,202.78,202.71,6.6489]
[1731207625225,0.1,202.86,202.71,6.6489]
[1731207625440,25.68072723,202.76,202.71,6.6489]
[1731207625643,25.68072723,202.75,202.71,6.6489]
[1731207625831,25.68072723,202.74,202.71,6.6489]
[1731207626033,25.68072723,202.73,202.71,6.6489]
[1731207626231,25.68072723,202.74,202.71,6.6489]
[1731207626433,25.68072723,202.75,202.71,6.6489]
[1731207628347,25.68072723,202.74,202.71,6.6489]
[1731207628529,25.68072723,202.78,202.72,20.0]
[1731207628726,0.1,202.89,202.73,25.68072723]
[1731207628727,25.68072723,202.8,202.73,25.68072723]
[1731207629026,25.68072723,202.8,202.74,20.0]
[1731207629555,25.68072723,202.81,202.74,25.68072723]
[1731207629849,25.68072723,202.76,202.71,6.6489]
[1731207630057,25.68072723,202.72,202.71,6.6489]
[1731207630232,25.68072723,202.72,202.65,6.6489]
[1731207630444,25.78072723,202.8,202.65,6.6489]
[1731207630839,25.68072723,202.69,202.65,6.6489]
[1731207631150,25.68072723,202.71,202.65,6.6489]
[1731207631664,25.68072723,202.71,202.66,20.0]
[1731207631949,0.1,202.86,202.69,25.68072723]
[1731207632129,25.68072723,202.76,202.7,20.0]
[1731207632333,0.1,202.84,202.7,20.0]
[1731207632334,25.68072723,202.75,202.7,20.0]
[1731207632762,25.68072723,202.76,202.69,25.68072723]
[1731207632940,25.68072723,202.77,202.7,45.68072723]
[1731207634163,25.68072723,202.75,202.68,25.68072723]
[1731207634456,25.68072723,202.69,202.66,20.0]
[1731207634664,25.68072723,202.69,202.65,6.6489]
[1731207634863,25.68072723,202.7,202.65,6.6489]
[1731207635571,25.65605841,202.7,202.65,6.6489]
[1731207636064,25.68072723,202.71,202.66,20.0]
[1731207637148,25.68072723,202.72,202.66,20.0]
[1731207637554,25.68072723,202.73,202.66,45.68072723]
[1731207638583,25.68072723,202.8,202.66,45.68072723]
[1731207638584,25.68072723,202.75,202.69,20.0]
[1731207638865,25.68072723,202.74,202.69,20.0]
[1731207639077,25.68072723,202.76,202.69,45.68072723]
[1731207639264,25.68072723,202.76,202.69,20.0]
[1731207639449,25.68072723,202.75,202.69,20.0]
[1731207639651,25.68072723,202.77,202.7,25.68072723]
[1731207639859,25.68072723,202.78,202.71,25.68072723]
[1731207640081,25.68072723,202.78,202.72,20.0]
[1731207640944,5.06203892,202.84,202.73,25.68072723]
[1731207641149,25.68072723,202.87,202.81,20.0]
[1731207642161,25.68072723,202.85,202.77,20.0]
[1731207642368,25.68072723,202.83,202.77,20.0]
[1731207642761,25.68072723,202.84,202.77,25.68072723]
[1731207643078,25.68072723,202.84,202.78,20.0]
[1731207643376,25.68072723,202.85,202.78,45.68072723]
[1731207643577,25.68072723,202.88,202.82,20.0]
[1731207644682,25.68072723,202.91,202.85,20.0]
[1731207645159,25.68072723,202.86,202.78,25.68072723]
[1731207645363,25.68072723,202.85,202.78,20.0]
[1731207645565,25.68072723,202.85,202.77,25.68072723]
[1731207645566,25.68072723,202.83,202.76,25.68072723]
[1731207645760,25.68072723,202.84,202.77,25.68072723]
[1731207646269,25.68072723,202.9,202.77,25.68072723]
[1731207646270,25.68072723,202.85,202.77,25.68072723]
[1731207646476,25.68072723,202.85,202.78,25.68072723]
[1731207646887,25.68072723,202.85,202.77,25.68072723]
[1731207647057,25.68072723,202.85,202.78,20.0]
[1731207647457,25.68072723,202.81,202.78,20.0]
[1731207647656,25.68072723,202.81,202.75,6.085]
[1731207647872,25.68072723,202.8,202.75,6.085]
[1731207648078,0.22549,202.88,202.75,6.085]
[1731207648464,25.68072723,202.77,202.75,6.085]
[1731207650080,23.876884,202.89,202.69,6.085]
[1731207650081,25.68072723,202.76,202.69,6.085]
[1731207650582,25.68072723,202.76,202.69,31.76572723]
[1731207651466,25.68072723,202.8,202.69,6.085]
[1731207651659,25.68072723,202.7,202.64,6.085]
[1731207652262,25.68072723,202.68,202.64,6.085]
[1731207652668,25.68072723,202.65,202.59,6.085]
[1731207652868,25.68072723,202.6,202.59,6.085]
[1731207653078,25.68072723,202.6,202.52,6.085]
[1731207653380,25.68072723,202.58,202.52,6.085]
[1731207653572,25.68072723,202.7,202.55,25.68072723]
[1731207653883,25.68072723,202.63,202.56,25.68072723]
[1731207654088,25.68072723,202.61,202.52,70.85057747]
[1731207654281,25.68072723,202.61,202.54,25.68072723]
[1731207654585,25.68072723,202.61,202.52,70.85057747]
[1731207654586,25.68072723,202.61,202.53,25.68072723]
[1731207655162,25.68072723,202.61,202.54,25.68072723]
[1731207655368,25.68072723,202.61,202.53,25.68072723]
[1731207655781,25.68072723,202.54,202.45,32.27392723]
[1731207655967,25.68072723,202.53,202.45,32.27392723]
[1731207656491,0.22549,202.66,202.49,25.68072723]
[1731207656492,25.68072723,202.57,202.49,25.68072723]
[1731207656983,25.68072723,202.54,202.47,25.68072723]
[1731207657187,25.68072723,202.56,202.47,25.68072723]
[1731207657483,25.68072723,202.58,202.49,25.68072723]
[1731207657876,25.68072723,202.58,202.5,20.0]
[1731207658782,25.68072723,202.56,202.5,20.0]
[1731207658967,25.68072723,202.57,202.5,20.0]
[1731207659772,25.68072723,202.55,202.47,25.68072723]
[1731207659970,25.68072723,202.53,202.48,20.0]
[1731207660464,25.68072723,202.54,202.45,32.27392723]
[1731207661274,25.68072723,202.54,202.46,23.776884]
[1731207661485,25.68072723,202.54,202.41,80.36467747]
[1731207661486,25.68072723,202.48,202.41,25.68072723]
[1731207661786,25.68072723,202.48,202.39,6.5932]
[1731207661787,25.68072723,202.43,202.39,6.5932]
[1731207661988,25.68072723,202.44,202.39,6.5932]
[1731207662589,25.68072723,202.51,202.42,25.68072723]
[1731207663168,25.68072723,202.49,202.43,20.0]
[1731207663373,25.68072723,202.47,202.4,20.0]
[1731207663571,25.68072723,202.47,202.4,45.68072723]
[1731207663772,25.68072723,202.49,202.4,25.68072723]
[1731207664484,25.68072723,202.47,202.4,25.68072723]
[1731207665001,25.68072723,202.47,202.41,20.0]
[1731207667599,25.68072723,202.44,202.4,20.0]
[1731207668700,25.68072723,202.5,202.4,20.0]
[1731207668701,25.68072723,202.43,202.4,20.0]
[1731207668993,25.68072723,202.44,202.4,20.0]
[1731207669596,25.68072723,202.42,202.4,20.0]
[1731207670199,25.68072723,202.5,202.4,20.0]
[1731207670200,25.68072723,202.43,202.4,20.0]
[1731207671494,25.68072723,202.43,202.39,6.5932]
[1731207672586,25.68072723,202.44,202.39,6.5932]
[1731207672996,25.68072723,202.43,202.39,6.5932]
[1731207674428,25.68072723,202.47,202.41,25.68072723]
[1731207674721,25.68072723,202.48,202.42,20.0]
[1731207674892,25.68072723,202.5,202.45,20.0]
[1731207675096,25.68072723,202.49,202.45,20.0]
[1731207675615,25.68072723,202.5,202.44,20.0]
[1731207675816,25.68072723,202.5,202.44,45.68072723]
[1731207676000,25.68072723,202.49,202.44,20.0]
[1731207676208,25.68072723,202.49,202.43,20.0]
[1731207676624,25.68072723,202.49,202.43,45.68072723]
[1731207677110,25.68072723,202.49,202.39,6.5932]
[1731207677111,25.68072723,202.44,202.39,6.5932]
[1731207677510,23.876884,202.56,202.39,6.5932]
[1731207677712,25.68072723,202.46,202.4,25.68072723]
[1731207677908,25.68072723,202.46,202.39,32.27392723]
[1731207678520,25.68072723,202.46,202.4,20.0]
[1731207680023,25.68072723,202.46,202.4,45.68072723]
[1731207680319,23.876884,202.56,202.4,45.68072723]
[1731207680320,25.68072723,202.47,202.41,25.68072723]
[1731207680522,25.68072723,202.48,202.42,20.0]
[1731207680712,25.68072723,202.47,202.42,20.0]
[1731207681121,25.68072723,202.47,202.4,45.68072723]
[1731207681427,25.68072723,202.46,202.4,20.0]
[1731207682101,25.68072723,202.43,202.39,6.5932]
[1731207682311,25.68072723,202.42,202.39,6.5932]
[1731207682514,25.68072723,202.4,202.34,6.141]
[1731207683299,25.68072723,202.4,202.34,11.066]
[1731207683707,25.68072723,202.4,202.36,20.0]
[1731207685115,25.68072723,202.39,202.36,20.0]
[1731207686529,25.68072723,202.4,202.36,20.0]
[1731207686828,25.68072723,202.39,202.36,20.0]
[1731207687222,25.68072723,202.39,202.37,4.925]
[1731207687419,25.68072723,202.38,202.37,4.925]
[1731207687726,25.68072723,202.38,202.29,21.7288]
[1731207687921,25.68072723,202.32,202.29,21.7288]
[1731207688520,25.68072723,202.31,202.29,6.141]
[1731207688829,25.68072723,202.32,202.29,6.141]
[1731207689731,25.68072723,202.37,202.3,25.68072723]
[1731207690430,25.68072723,202.37,202.31,20.0]
[1731207692532,25.68072723,202.32,202.27,20.0]
[1731207692831,25.68072723,202.33,202.28,20.0]
[1731207693934,25.68072723,202.34,202.28,20.0]
[1731207694822,25.68072723,202.35,202.28,25.68072723]
[1731207695221,25.68072723,202.35,202.29,20.0]
[1731207695539,25.66072723,202.35,202.29,20.0]
[1731207695746,0.1,202.46,202.3,25.68072723]
[1731207695912,25.68072723,202.38,202.31,45.68072723]
[1731207696333,25.68072723,202.37,202.31,20.0]
[1731207696534,25.68072723,202.38,202.31,25.68072723]
[1731207696732,25.68072723,202.38,202.32,20.0]
[1731207696912,25.68072723,202.37,202.32,20.0]
[1731207697111,25.68072723,202.37,202.31,20.0]
[1731207697330,25.68072723,202.37,202.3,25.68072723]
[1731207697528,25.68072723,202.38,202.31,45.68072723]
[1731207697732,25.68072723,202.38,202.31,25.68072723]
[1731207698124,25.68072723,202.38,202.32,20.0]
[1731207698325,25.68072723,202.37,202.32,20.0]
[1731207698923,25.68072723,202.38,202.31,20.0]
[1731207699718,25.68072723,202.37,202.31,20.0]
[1731207700126,3.80344115,202.48,202.3,25.68072723]
[1731207700127,3.80344115,202.48,202.37,20.0]
[1731207700331,25.68072723,202.44,202.37,45.68072723]
[1731207700515,25.68072723,202.39,202.34,20.0]
[1731207700715,0.1,202.46,202.34,20.0]
[1731207700716,25.68072723,202.38,202.34,20.0]
[1731207700917,0.1,202.43,202.32,6.4695]
[1731207701132,0.12549,202.42,202.32,6.4695]
[1731207701643,0.1,202.41,202.32,6.4695]
[1731207701936,16.10542118,202.33,202.32,6.4695]
[1731207702344,16.10542118,202.33,202.27,6.4695]
[1731207702525,16.10542118,202.29,202.27,6.4695]
[1731207702727,16.10542118,202.28,202.23,15.7573]
[1731207702920,16.10542118,202.26,202.23,15.7573]
[1731207703126,16.10542118,202.24,202.22,6.4695]
[1731207703428,16.10542118,202.3,202.22,6.4695]
[1731207703429,16.10542118,202.25,202.22,6.4695]
[1731207703631,16.10542118,202.25,202.17,31.86272118]
[1731207703632,16.10542118,202.23,202.17,22.2268]
[1731207704023,16.20542118,202.3,202.17,38.33222118]
[1731207704024,16.10542118,202.24,202.17,38.33222118]
[1731207704225,16.10542118,202.23,202.17,22.2268]
[1731207705446,25.7981006,202.23,202.17,22.2268]
[1731207705626,25.7981006,202.2,202.13,25.7981006]
[1731207705944,25.7981006,202.22,202.14,25.7981006]
[1731207706524,25.7981006,202.23,202.15,25.7981006]
[1731207706725,25.7981006,202.23,202.1,25.7981006]
[1731207706726,25.7981006,202.24,202.16,25.7981006]
[1731207707036,25.7981006,202.24,202.18,20.0]
[1731207707629,25.7981006,202.2,202.1,20.0]
[1731207707844,25.7981006,202.2,202.13,25.7981006]
[1731207708146,25.7981006,202.2,202.14,20.0]
[1731207708338,25.7981006,202.2,202.13,25.7981006]
[1731207708643,0.22549,202.28,202.1,25.7981006]
[1731207708644,25.7981006,202.17,202.1,25.7981006]
[1731207708849,25.7981006,202.16,202.09,31.8585006]
[1731207709142,25.7981006,202.17,202.09,31.8585006]
[1731207709348,25.7981006,202.18,202.11,25.7981006]
[1731207709531,25.7981006,202.19,202.11,25.7981006]
[1731207709726,25.7981006,202.17,202.1,25.7981006]
[1731207710344,25.7981006,202.18,202.11,25.7981006]
[1731207710643,25.7981006,202.19,202.11,25.7981006]
[1731207710837,25.7981006,202.19,202.12,20.0]
[1731207711227,25.7981006,202.17,202.09,31.8585006]
[1731207711435,25.7981006,202.18,202.11,25.7981006]
[1731207711855,25.7981006,202.2,202.12,25.7981006]
[1731207712139,25.7981006,202.19,202.11,25.7981006]
[1731207712350,25.7981006,202.18,202.11,25.7981006]
[1731207712647,25.7981006,202.18,202.12,20.0]
[1731207713544,25.7981006,202.13,201.95,16.1756]
[1731207713737,25.7981006,202.1,202.03,6.0604]
[1731207714043,25.7981006,202.14,202.06,25.7981006]
[1731207714232,25.7981006,202.2,201.9,0.8432992]
[1731207714233,15.9496,202.13,201.9,0.8432992]
[1731207714432,15.9496,202.13,201.93,25.7981006]
[1731207714433,25.7981006,202.01,201.93,25.7981006]
[1731207714637,0.1,202.09,201.95,25.7981006]
[1731207714638,25.7981006,202.03,201.95,25.7981006]
[1731207714848,25.7981006,202.05,201.95,25.7981006]
[1731207715428,25.7981006,202.03,201.95,25.7981006]
[1731207716152,25.7981006,202.03,201.96,20.0]
[1731207716364,25.7981006,202.05,201.96,20.0]
[1731207716660,25.7981006,202.07,202.0,20.0]
[1731207717063,25.7981006,202.07,202.0,26.2031]
[1731207717359,25.7981006,202.09,202.02,20.0]
[1731207717857,25.7981006,202.11,202.03,25.7981006]
[1731207718750,25.7981006,202.11,202.04,20.0]
[1731207719150,25.7981006,202.11,202.03,25.7981006]
[1731207720041,25.7981006,202.09,202.02,20.0]
[1731207720237,25.7981006,202.11,202.02,45.7981006]
[1731207720454,25.7981006,202.11,202.04,25.7981006]
[1731207720666,25.7981006,202.11,202.02,25.7981006]
[1731207720844,25.7981006,202.11,202.03,20.0]
[1731207722146,25.7981006,202.11,202.01,20.0]
[1731207722449,25.7981006,202.09,202.01,20.0]
[1731207722649,0.1,202.13,202.01,20.0]
[1731207722858,25.7981006,202.05,201.98,25.7981006]
[1731207723051,25.7981006,202.05,201.96,25.7981006]
[1731207723252,25.7981006,202.01,201.94,32.0012006]
[1731207723460,0.2,202.08,201.94,32.0012006]
[1731207723461,25.7981006,202.03,201.94,32.0012006]
[1731207723770,25.7981006,202.07,201.98,25.7981006]
[1731207724269,25.7981006,202.07,201.9,25.7981006]
[1731207724270,0.12549,202.06,201.95,25.7981006]
[1731207724569,25.7981006,202.02,201.93,25.7981006]
[1731207724745,25.7981006,202.04,201.95,25.7981006]
[1731207724945,25.7981006,202.04,201.97,25.7981006]
[1731207725141,0.12549,202.05,201.97,25.7981006]
[1731207725364,25.7981006,202.04,201.96,20.0]
[1731207725744,25.7981006,202.04,201.97,25.7981006]
[1731207726160,15.3535,202.12,201.99,25.7981006]
[1731207726365,25.7981006,202.08,201.99,45.7981006]
[1731207726947,0.22549,202.11,201.99,25.7981006]
[1731207727164,25.7981006,202.07,201.99,25.7981006]
[1731207727368,25.7981006,202.07,202.0,20.0]
[1731207728051,25.7981006,202.09,202.01,25.7981006]
[1731207728461,25.7981006,202.09,201.99,45.7981006]
[1731207729058,0.12549,202.15,202.03,25.7981006]
[1731207729268,25.7981006,202.11,202.03,25.7981006]